{"text_format":"1","workbook":"xlsx","n_sheets":2,"sheets":["Vegetation Removal Request","Signatures"],"not_rendered":{"charts":0,"images":0,"macros":1,"external_links":1,"defined_names":9,"comments":1,"pivot_tables":0},"unopened":[],"bounds":{"document_bytes":16777216,"sheet_cells":100000,"rows_first":2000,"rows_last":500,"rows_between":2000,"halvings":0,"cell_chars":16384,"cell_head_chars":4096},"cells_cut":0,"cells_raw":0,"read":"whole","date_system":"1900"}

{"sheet":"Vegetation Removal Request","index":0,"n_rows":75,"n_cols":21,"rows_kept":75,"cut":false,"hidden":false,"merged":[[1,20,3,24],[39,0,39,18],[40,0,40,13],[40,14,40,18],[41,0,41,13],[41,14,41,18],[42,0,42,13],[42,14,42,18],[65,0,65,1],[49,0,49,18],[53,0,53,5],[54,0,54,1],[43,0,43,13],[43,14,43,18],[45,0,45,18],[46,0,46,13],[46,14,46,18],[58,0,58,18],[59,0,59,18],[60,0,60,18],[57,0,57,18],[36,0,38,9],[36,10,36,14],[36,15,36,16],[36,17,36,18],[37,10,38,14],[37,15,37,16],[37,17,37,18],[38,15,38,16],[38,17,38,18],[33,0,33,16],[34,0,34,9],[34,10,34,15],[34,16,34,18],[35,0,35,9],[35,10,35,18],[31,0,31,5],[31,8,31,9],[32,0,32,5],[32,8,32,9],[32,10,32,12],[32,13,32,18],[28,0,28,5],[28,8,28,9],[23,8,23,13],[24,0,24,9],[24,10,26,18],[25,0,26,5],[25,6,25,7],[25,8,26,9],[22,0,23,7],[27,0,27,5],[27,8,27,9],[27,10,31,18],[29,0,29,5],[29,8,29,9],[30,0,30,5],[30,8,30,9],[17,10,17,13],[18,8,19,9],[18,10,18,13],[19,10,19,13],[20,8,22,9],[20,10,20,13],[21,10,21,13],[22,10,22,13],[12,0,12,7],[12,8,12,18],[13,8,14,9],[13,10,14,13],[13,14,13,16],[13,17,13,18],[15,8,17,9],[15,10,15,13],[16,10,16,13],[13,0,20,7],[21,0,21,7],[0,0,0,9],[10,13,11,15],[10,16,11,18],[7,13,8,15],[7,16,8,18],[8,0,8,9],[9,13,9,15],[9,16,9,18],[7,10,8,12],[9,10,9,12],[10,10,11,12],[9,0,9,5],[9,6,9,9],[10,0,11,5],[10,6,10,9],[11,6,11,9],[7,0,7,2],[7,3,7,5],[7,6,7,9],[67,0,67,18],[68,0,68,18],[69,0,69,18],[53,10,53,15],[54,10,54,11],[58,19,60,21],[67,19,69,21],[74,0,74,1],[0,10,0,14],[0,15,0,18],[1,10,1,14],[1,15,3,18],[2,0,5,9],[2,10,2,14],[3,10,3,14],[4,10,4,14],[4,15,4,18],[5,10,5,14],[5,15,6,18],[6,10,6,14],[6,0,6,2],[6,3,6,5],[6,6,6,9],[1,0,1,9]]}
["DEPARTMENT FOR INFRASTRUCTURE AND TRANSPORT",null,null,null,null,null,null,null,null,null,"LGA",null,null,null,null,"VEGETATION SURVEY NO."]
["TECHNICAL SERVICES, TRANSPORT PLANNING AND PROGRAM DEVELOPMENT",null,null,null,null,null,null,null,null,null,"1  -  ",null,null,null,null,"VS 202X/XXX",null,null,null,null,"Superseded/repealed from 1 November 2021 – refer to \nhttps://www.dit.sa.gov.au/standards/environment"]
["VEGETATION REMOVAL REQUEST",null,null,null,null,null,null,null,null,null,"2  - "]
[null,null,null,null,null,null,null,null,null,null,"3  - "]
[null,null,null,null,null,null,null,null,null,null,"4  -  ",null,null,null,null,"DIT FILE NUMBER"]
[null,null,null,null,null,null,null,null,null,null,"5  -  ",null,null,null,null,"202X/XXXXX/XX"]
["REQUESTING OFFICER",null,null,"REQUESTING COMPANY",null,null,"DIT PROJECT MANAGER",null,null,null,"6  -  "]
[null,null,null,null,null,null,null,null,null,null,"SHAPEFILE (KNET#)",null,null,"START \nMM/GPS",null,null,"END\nMM/GPS"]
["Project Name: "]
["Road No.: ",null,null,null,null,null,"LANDSCAPE SA BOARD(S)"]
["Location: "]
[]
["PROJECT DESCRIPTION & REASON FOR VEGETATION REMOVAL",null,null,null,null,null,null,null,"IMPACTS & OFFSETS"]
[null,null,null,null,null,null,null,null,"Legislation or Policy",null,"VEGETATION APPROVAL CATEGORY",null,null,null,"IMPACTS",null,null,"OFFSET"]
[null,null,null,null,null,null,null,null,null,null,null,null,null,null,"Removal\n(Number)","Major Prune\n(Number)","Removal\n(Area - ha)","Number","Area (ha) or SEB Points"]
[null,null,null,null,null,null,null,null,"Native Vegetation Act",null,"Clearance for New Works ",null,null,null,null,null,null,"N/A"]
[null,null,null,null,null,null,null,null,null,null,"Clearance for Maintenance (eg structurally unsound; within the clearance envelope)",null,null,null,null,null,null,"N/A","N/A"]
[null,null,null,null,null,null,null,null,null,null,"Clearance under Safety Regulation 5(1)(lb)"]
[null,null,null,null,null,null,null,null,"Development Act",null,"Regulated Trees",null,null,null,null,null,"N/A",{"$f":"(IF(O19=\"\",\"\",O19*2))","v":""},"N/A"]
[null,null,null,null,null,null,null,null,null,null,"Regulated Significant Trees",null,null,null,null,null,"N/A",{"$f":"(IF(O20=\"\",\"\",O20*3))","v":""},"N/A"]
[null,null,null,null,null,null,null,null,"DIT Vegetation Removal Policy",null,"Declared/Environmental Weeds and/or Self-seeded Plants",null,null,null,null,null,null,"N/A","N/A"]
["TYPE OF VEGETATION IMPACTED",null,null,null,null,null,null,null,null,null,"Amenity Planting (including vegetation incidental to maintenance eg structurally unsound)",null,null,null,null,null,null,{"$f":"(IF(O22=\"\",\"\",O22))","v":""},{"$f":"(IF(Q22=\"\",\"\",Q22))","v":""}]
["eg Eucalyptus fasciculosa Open Woodland (Area) or \nEucalyptus camaldulensis (Scattered Tree/s)\n",null,null,null,null,null,null,null,null,null,"Native Vegetation not covered by the Native Vegetation Act (including vegetation incidental to maintenance eg structurally unsound)",null,null,null,null,null,null,{"$f":"(IF(O23=\"\",\"\",O23*2))","v":""},{"$f":"(IF(Q23=\"\",\"\",Q23*2))","v":""}]
[null,null,null,null,null,null,null,null,"TOTAL",null,null,null,null,null,{"$f":"SUM(O16:O23)","v":0},{"$f":"SUM(P16:P23)","v":0},{"$f":"SUM(Q16:Q23)","v":0},{"$f":"SUM(R16:R23)","v":0},{"$f":"SUM(S16:S23)","v":0}]
["DELIVERY OF OFFSETS",null,null,null,null,null,null,null,null,null,"OFFSET DELIVERY DETAILS & OTHER COMMENTS\n(Note to start another line within a cell press Alt Enter)"]
["OPTIONS FOR THE DELIVERY OF OFFSET",null,null,null,null,null,"OFFSET",null,"Amount ($)"]
[null,null,null,null,null,null,"Number","SEB Area (ha) or\nSEB Points"]
["Payment into the Native Vegetation Fund*",null,null,null,null,null,"N/A"]
["Payment into the Planning & Development Fund*",null,null,null,null,null,null,"N/A",{"$f":"G29*96","v":0}]
["On Ground Works",null,null,null,null,null,null,null,"N/A"]
["Payment to a Third Party*"]
["Payment into the Amenity Planting Fund (DIT)*#",null,null,null,null,null,null,null,{"$f":"(G32*96)+(H32*5000)","v":0}]
["TOTAL",null,null,null,null,null,{"$f":"SUM(G28:G32)","v":0},{"$f":"SUM(H28:H32)","v":0},{"$f":"SUM(I28:I32)","v":0},null,"eg 7500 22027890 51000",null,null,"*Insert Budget Line; Resp; Project & Task Numbers if a Payment Option is selected"]
["# Note - for payments into the Amenity Planting Fund, the project will be charged at the END OF FINANCIAL YEAR"]
["DEPARTMENT FOR INFRASTRUCTURE AND TRANSPORT",null,null,null,null,null,null,null,null,null,"DIT File No.",null,null,null,null,null,{"$f":"(IF(P6=\"\",\"\",P6))","v":"202X/XXXXX/XX"}]
["TECHNICAL SERVICES, TRANSPORT PLANNING AND PROGRAM DEVELOPMENT",null,null,null,null,null,null,null,null,null,{"$f":"(IF(A9=\"\",\"\",A9))","v":"Project Name: "}]
["VEGETATION REMOVAL REQUEST",null,null,null,null,null,null,null,null,null,{"$f":"(IF(A10=\"\",\"\",A10))","v":"Road No.: "},null,null,null,null,"Start MM/GPS",null,"End MM/GPS"]
[null,null,null,null,null,null,null,null,null,null,{"$f":"(IF(A11=\"\",\"\",A11))","v":"Location: "},null,null,null,null,{"$f":"(IF(N10=\"\",\"\",N10))","v":""},null,{"$f":"(IF(Q10=\"\",\"\",Q10))","v":""}]
[null,null,null,null,null,null,null,null,null,null,null,null,null,null,null,{"$f":"(IF(N11=\"\",\"\",N11))","v":""},null,{"$f":"(IF(Q11=\"\",\"\",Q11))","v":""}]
["EXTERNAL APPROVALS"]
["Native Vegetation Council (Native Vegetation Act,1991)"]
["State Commission Assessment Panel (Development Act,1993; Planning, Development and Infrastructure Act 2016)"]
["Minister for Aboriginal Affairs (Aboriginal Heritage Act,1988)"]
["Federal Environment Minister (EPBC Act,1999)"]
[]
["EXTERNAL CONSULTATION"]
["The local council(s) has been consulted on the removal of the vegetation and the offset, if located in the road reserve."]
[]
[]
["The removal of the vegetation proposed above has been minimised and is considered necessary and unavoidable and is recommended for endorsement / approval."]
[]
[]
[]
["Requesting Officer / Contractor",null,null,null,null,null,null,null,null,null,"DIT Project Manager"]
["     /     /",null,null,null,null,null,null,null,null,null,"     /     /"]
[]
[]
["To the Requesting Officer and/or Project Manager"]
["The clearance and associated offset of Level 1 / Level 2 / Level 3 / Level 4 Native Vegetation Clearance is ENDORSED / APPROVED for seeking endorsement / approval from PEA / ED TPD / NVC.",null,null,null,null,null,null,null,null,null,null,null,null,null,null,null,null,null,null,"< Note that these are examples and will need to be modified/ amended to suit based on DIT's VRP"]
["The clearance and associated offset of regulated (/significant) tree(s) is ENDORSED / APPROVED for seeking endorsement / approval from ED TPD / Minister for Planning."]
["The clearance and offset of amenity vegetation is ENDORSED / APPROVED for seeking endorsement / approval from ED TPD."]
[]
[]
[]
["Senior Environmental Advisor"]
["     /     /"]
[]
["The clearance and associated offset of Level 1 / Level 2 / Level 3 / Level 4 Native Vegetation Clearance is ENDORSED / APPROVED for seeking endorsement / approval from PEA / ED TPD / NVC.",null,null,null,null,null,null,null,null,null,null,null,null,null,null,null,null,null,null,"< Note that these are examples and will need to be modified/ amended to suit based on DIT's VRP"]
["The clearance and associated offset of regulated (/significant) tree(s) is ENDORSED / APPROVED for seeking endorsement / approval from ED TPD / Minister for Planning."]
["The clearance and offset of amenity vegetation is ENDORSED / APPROVED for seeking endorsement / approval from ED TPD."]
[]
[]
[]
["Principal Environmental Advisor"]
["     /     /"]

{"sheet":"Signatures","index":1,"n_rows":36,"n_cols":13,"rows_kept":36,"cut":false,"hidden":true,"merged":[]}
["To the GENERAL MANAGER, INFRASTRUCTURE DELIVERY"]
["The above request has been endorsed.",null,null,null,null,null,null,null,null,null,null,null,"Alinytjara Wiluṟara"]
[null,null,null,null,null,null,null,null,null,null,null,null,"Eyre Peninsula"]
[null,null,null,null,null,null,null,null,null,null,null,null,"Green Adelaide"]
[null,null,null,null,null,null,null,null,null,null,null,null,"Hills and Fleurieu"]
["Senior Environmental Management Officer",null,null,null,null,null,null,null,null,null,null,null,"Kangaroo Island"]
["     /     /",null,null,null,null,null,null,null,null,null,null,null,"Limestone Coast"]
[null,null,null,null,null,null,null,null,null,null,null,null,"Murraylands and Riverland"]
[null,null,null,null,null,null,null,null,null,null,null,null,"Northern and Yorke"]
["To the Project Manager",null,null,null,null,null,null,null,null,null,null,null,"South Australian Arid Lands"]
["The above request has been approved."]
[]
[]
[]
["Senior Environmental Management Officer"]
["     /     /"]
[]
[]
[]
["To the Principal Environmental Advisor"]
["The above request has been endorsed."]
[]
[]
[]
["Senior Environmental Advisor"]
["     /     /"]
[]
[]
[]
["To the Project Manager"]
["The above request has been approved."]
[]
[]
[]
["Senior Environmental Advisor"]
["     /     /"]